bitfinex-derivatives/quotes_ETHF0:USTF0_20250126
["timestamp","ask_amount","ask_price","bid_price","bid_amount"]
[1737897800989,0.60507,3305.9,3305.7,3.81289]
[1737897801189,0.4851,3305.8,3305.7,3.81289]
[1737897801797,1.09018,3305.8,3305.7,3.81289]
[1737897801992,1.09018,3305.8,3305.7,3.2078]
[1737897802700,1.44075976,3305.8,3305.7,3.8129]
[1737897802887,1.44075976,3305.8,3305.7,3.2078]
[1737897804293,1.44075976,3305.8,3305.7,3.8129]
[1737897805400,1.44075976,3305.8,3305.7,3.2078]
[1737897805601,1.44075976,3305.8,3305.7,3.8129]
[1737897806403,1.44075976,3305.8,3305.7,3.2078]
[1737897806904,1.44075976,3305.8,3305.7,3.8129]
[1737897809598,1.09018,3305.8,3305.7,3.2078]
[1737897810499,1.09018,3305.8,3304.8,0.2459229]
[1737897810500,2.11787,3305.7,3304.6,3.8131]
[1737897810699,2.11787,3305.7,3304.6,3.2078]
[1737897810700,0.60528,3304.7,3304.6,3.2078]
[1737897810910,0.60532,3304.5,3304.4,0.00453597]
[1737897831917,0.60547,3303.7,3303.5,0.60549]
[1737897832414,0.60547,3303.7,3303.6,0.60548]
[1737897832620,0.60547,3303.7,3303.3,16.4266]
[1737897832819,1.5245,3304.1,3303.3,16.4266]
[1737897833010,0.60549,3303.6,3303.3,16.4266]
[1737897833214,0.60549,3303.6,3303.5,0.6055]
[1737897833417,0.00453597,3303.8,3303.5,0.6055]
[1737897833715,0.60552,3303.5,3303.4,0.60552]
[1737897834521,0.00453597,3303.8,3303.3,16.4266]
[1737897834818,0.60552,3303.4,3303.3,16.4266]
[1737897835015,0.60552,3303.4,3303.3,13.2188]
[1737897840923,0.60552,3303.4,3303.3,13.82434]
[1737897841118,0.60552,3303.4,3303.3,13.2188]
[1737897841714,0.60552,3303.4,3303.3,12.713]
[1737897842423,0.60552,3303.5,3303.4,0.60551]
[1737897843226,3.2078,3303.7,3303.3,13.2097]
[1737897843430,3.81328,3303.7,3303.6,0.60548]
[1737897843820,0.60549,3303.6,3303.5,0.60549]
[1737897844929,3.81327,3303.7,3303.5,0.60549]
[1737897845130,0.60547,3303.7,3303.5,0.60549]
[1737897845424,0.60547,3303.7,3303.3,13.2097]
[1737897845630,0.60547,3303.7,3303.5,0.6055]
[1737897847331,0.00453597,3303.8,3303.5,0.6055]
[1737897847822,0.60548,3303.7,3303.5,0.6055]
[1737897848024,0.60548,3303.6,3303.5,0.6055]
[1737897849829,0.60548,3303.7,3303.5,0.60549]
[1737897850127,0.60548,3303.6,3303.5,0.60549]
[1737897850835,0.00453597,3303.8,3303.7,0.60547]
[1737897851019,0.00453597,3303.8,3303.7,3.81327]
[1737897851331,3.2078,3304.5,3304.3,0.60534]
[1737897851523,3.81312,3304.5,3304.3,0.60534]
[1737897852232,0.60536,3304.3,3304.1,0.60538]
[1737897852428,0.60535,3304.4,3304.2,0.60537]
[1737897852734,0.60537,3304.2,3304.1,0.4801]
[1737897852923,0.60537,3304.2,3303.7,3.2078]
[1737897852924,0.99463597,3304.7,3303.7,3.2078]
[1737897853120,0.6054,3304.1,3303.9,0.60542]
[1737897853327,0.60537,3304.3,3304.1,0.60539]
[1737897853535,0.60537,3304.2,3304.0,0.6054]
[1737897853828,0.60539,3304.1,3303.9,0.60542]
[1737897854032,1.09839,3304.1,3303.9,0.60542]
[1737897854234,0.60541,3304.0,3303.9,0.60543]
[1737897854431,0.60541,3304.0,3303.8,1.59124]
[1737897855934,0.493,3304.1,3303.8,1.59124]
[1737897856130,0.60543,3303.9,3303.8,1.59124]
[1737897857939,1.12503,3304.0,3303.9,0.60543]
[1737897858138,1.12503,3304.0,3303.8,0.9858]
[1737897858139,0.60543,3303.9,3303.8,1.59124]
[1737897858433,0.60543,3303.9,3303.8,0.5057]
[1737897858933,0.60543,3303.9,3303.8,1.11115]
[1737897859631,0.60543,3303.9,3303.8,0.5057]
[1737897859826,0.95666432,3303.9,3303.8,1.11115]
[1737897860542,0.35123432,3303.9,3303.7,3.2078]
[1737897860742,0.60545,3303.8,3303.7,3.2078]
[1737897861041,0.35123432,3303.8,3303.4,0.9963]
[1737897861239,1.037,3304.0,3303.4,0.9963]
[1737897861240,0.60549,3303.6,3303.5,0.60549]
[1737897861441,0.60548,3303.6,3303.5,0.60549]
[1737897862043,1.037,3304.0,3303.4,0.9963]
[1737897862243,0.6055,3303.5,3303.4,1.11861]
[1737897863037,0.95683757,3303.5,3303.4,1.11861]
[1737897863340,0.6055,3303.5,3303.4,0.5131]
[1737897863537,0.6055,3303.5,3303.4,1.11862]
[1737897864737,3.2078,3303.5,3303.2,0.00453597]
[1737897864945,0.60554,3303.3,3303.2,0.00453597]
[1737897865238,1.51369,3303.7,3303.2,0.00453597]
[1737897865239,0.60548,3303.7,3303.2,0.61009597]
[1737897865543,1.62762,3304.0,3303.5,3.2078]
[1737897865741,1.62762,3304.0,3303.9,0.60543]
[1737897865941,1.37350711,3304.0,3303.9,0.60543]
[1737897866137,1.08736,3304.3,3303.5,4.72154]
[1737897866337,0.482,3304.3,3303.9,3.2078]
[1737897866539,0.35124363,3304.3,3304.2,0.60537]
[1737897867040,0.35124363,3304.3,3304.0,1.565]
[1737897867240,0.60534,3304.4,3304.0,2.1704]
[1737897867443,0.60538,3304.2,3304.0,2.1704]
[1737897868645,0.5174,3304.1,3304.0,2.1704]
[1737897869150,0.5174,3304.1,3304.0,1.64721]
[1737897869345,0.5174,3304.1,3304.0,1.0418]
[1737897869739,1.47406834,3304.1,3304.0,1.0418]
[1737897870143,0.86867781,3304.1,3304.0,1.64721]
[1737897871742,0.86867781,3304.1,3304.0,0.5182]
[1737897871949,2.52337781,3304.1,3303.9,0.60542]
[1737897872135,0.35127781,3304.0,3303.9,0.60542]
[1737897872746,2.17209,3304.1,3303.9,0.60542]
[1737897873141,0.35132379,3304.0,3303.9,0.60542]
[1737897874246,0.95673379,3304.0,3303.9,0.60542]
[1737897874846,0.35132379,3304.0,3303.9,0.60542]
[1737897877349,2.1721,3304.1,3303.9,0.60542]
[1737897877650,0.60541,3304.0,3303.9,0.60542]
[1737897877949,0.60544,3303.9,3303.8,0.60544]
[1737897878149,0.60542,3304.0,3303.9,0.60543]
[1737897878344,0.60543,3303.9,3303.6,0.9972]
[1737897878543,0.60543,3303.9,3303.8,0.60544]
[1737897881450,0.60542,3304.0,3303.9,0.60542]
[1737897886256,3.2078,3304.4,3303.6,4.205]
[1737897886552,0.60536,3304.3,3304.2,0.60537]
[1737897886755,0.95682319,3304.3,3304.2,0.60537]
[1737897887055,0.35146319,3304.3,3304.2,0.60537]
[1737897889253,0.35146319,3304.3,3304.1,1.0333]
[1737897889552,0.60536,3304.3,3304.2,0.60537]
[1737897889955,0.95682319,3304.3,3304.2,0.60537]
[1737897890352,0.60537,3304.2,3304.1,1.63868]
[1737897890553,1.47133319,3304.2,3304.1,1.63868]
[1737897891147,1.47133319,3304.2,3304.1,1.63869]
[1737897892055,1.47133319,3304.2,3304.1,1.12099]
[1737897893959,0.86596319,3304.2,3304.1,1.12099]
[1737897896861,1.47133319,3304.2,3304.1,1.12099]
[1737897897253,0.86596319,3304.2,3304.1,1.12099]
[1737897900259,1.47133319,3304.2,3304.1,1.12099]
[1737897900561,1.47133319,3304.2,3304.0,3.8132]
[1737897900864,0.84666319,3304.1,3304.0,3.8132]
[1737897905258,0.4952,3304.1,3304.0,3.8132]
[1737897905863,1.0086,3304.1,3304.0,3.8132]
[1737897906165,1.61399,3304.1,3304.0,3.2078]
[1737897908456,1.61399,3304.1,3304.0,3.81321]
[1737897909562,1.61399,3304.1,3304.0,3.2078]
[1737897910875,1.61399,3304.1,3303.9,0.60542]
[1737897911172,0.60541,3304.0,3303.9,0.60542]
[1737897911571,1.614,3304.1,3303.9,0.60542]
[1737897912175,1.0086,3304.1,3303.9,0.60542]
[1737897912475,0.60541,3304.0,3303.9,0.60542]
[1737897914892,4.2164,3304.1,3303.4,0.477]
[1737897915078,4.2164,3304.1,3303.4,0.9723]
[1737897915279,0.6055,3303.5,3303.4,0.9723]
[1737897915977,0.6055,3303.5,3303.4,1.57782]
[1737897917079,0.97105496,3303.5,3303.4,0.9723]
[1737897917284,0.60554,3303.3,3303.2,0.61008597]
[1737897917485,1.00019494,3303.3,3303.2,0.00453597]
[1737897917988,1.00019494,3303.3,3303.2,0.61009597]
[1737897918584,0.39465494,3303.3,3303.2,0.61009597]
[1737897919287,1.12744,3303.4,3303.2,0.61009597]
[1737897919588,0.39447123,3303.3,3303.2,0.61009597]
[1737897920085,1.12744,3303.4,3303.3,0.60554]
[1737897920385,1.52187527,3303.4,3303.3,0.60554]
[1737897920584,1.52187527,3303.4,3303.3,1.12184]
[1737897921585,0.39443527,3303.4,3303.3,1.12184]
[1737897921786,0.39443527,3303.6,3303.5,0.6055]
[1737897922787,0.39443527,3303.7,3303.4,0.5216]
[1737897922988,0.39443527,3303.7,3303.6,0.60548]
[1737897923186,0.5041,3304.2,3303.4,41.3216]
[1737897923187,0.39443527,3303.9,3303.8,0.60545]
[1737897923394,0.39443527,3304.1,3304.0,0.60541]
[1737897923887,0.87843527,3304.1,3304.0,0.60541]
[1737897924090,1.99352527,3304.1,3304.0,0.60541]
[1737897928487,0.39443527,3304.1,3304.0,0.60541]
[1737897928694,0.92023527,3304.4,3304.0,0.60541]
[1737897928896,0.60539,3304.1,3304.0,0.60541]
[1737897929090,0.99982527,3304.1,3304.0,0.60541]
[1737897931790,0.39443527,3304.1,3304.0,0.60541]
[1737897931990,0.60538,3304.2,3304.0,0.60541]
[1737897932192,0.39443527,3304.1,3304.0,0.60541]
[1737897934396,0.99982527,3304.1,3304.0,0.60541]
[1737897936992,0.99982527,3304.1,3304.0,1.09751]
[1737897937991,0.99982527,3304.1,3304.0,0.4921]
[1737897939999,0.60541,3304.0,3303.9,1.09672]
[1737897940191,1.62951,3304.0,3303.9,1.09672]
[1737897941495,1.0241,3304.0,3303.7,3.2078]
[1737897941691,0.60545,3303.8,3303.7,3.81326]
[1737897941892,0.60545,3303.8,3303.7,3.2078]
[1737897942694,0.96030089,3303.8,3303.7,3.2078]
[1737897943594,0.96030089,3303.8,3303.5,0.60549]
[1737897943595,0.35485089,3303.8,3303.5,0.60549]
[1737897943800,0.60548,3303.6,3303.5,0.60549]
[1737897948901,0.5009,3303.9,3303.4,3.2078]
[1737897949106,1.08652,3303.5,3303.4,0.60552]
[1737897949301,0.60553,3303.4,3303.3,0.60553]
[1737897949497,1.57203,3303.4,3303.3,0.60553]
[1737897951005,0.9665,3303.4,3303.3,0.60553]
[1737897952708,0.9665,3303.4,3303.3,1.12443]
[1737897953509,0.60548,3303.7,3303.6,0.60547]
[1737897954005,1.5085,3304.0,3303.4,3.7246]
[1737897954205,0.60547,3303.8,3303.7,0.60546]
[1737897959708,0.60545,3303.8,3303.7,0.60546]
[1737897960113,0.60543,3303.9,3303.6,0.60547]
[1737897960308,0.60546,3303.8,3303.6,0.60547]
[1737897961015,0.60546,3303.8,3303.4,3.7246]
[1737897962421,0.60547,3303.7,3303.6,0.60547]
[1737897964418,1.5085,3304.0,3303.4,3.2078]
[1737897964717,0.6055,3303.5,3303.4,3.81331]
[1737897965113,1.5978,3303.5,3303.4,3.81331]
[1737897965809,1.5978,3303.5,3303.4,3.2078]
[1737897966010,1.5978,3303.5,3303.4,3.81332]
[1737897966210,1.5978,3303.5,3303.4,3.2078]
[1737897966411,1.5978,3303.5,3303.4,3.81332]
[1737897967218,1.5978,3303.5,3303.4,0.60552]
[1737897969419,0.9923,3303.5,3303.4,0.60552]
[1737897970821,1.5978,3303.5,3303.4,0.60552]
[1737897973615,0.9923,3303.5,3303.4,0.60552]
[1737897973815,0.5291,3303.6,3303.4,0.60552]
[1737897974121,0.5291,3303.6,3303.5,0.6055]
[1737897974323,0.5213,3304.2,3303.3,1.0369]
[1737897974517,1.61258,3304.2,3304.1,0.60539]
[1737897975422,1.0072,3304.2,3304.1,0.60539]
[1737897976921,0.60541,3304.1,3303.9,0.60542]
[1737897977120,0.60541,3304.1,3304.0,0.60541]
[1737897977817,1.0072,3304.2,3303.8,1.4868]
[1737897978021,1.61258,3304.2,3303.8,1.4868]
[1737897978224,1.61258,3304.2,3304.0,0.6054]
[1737897978917,1.61258,3304.2,3303.8,1.4868]
[1737897979118,1.61258,3304.2,3304.0,0.6054]
[1737897979818,0.60539,3304.1,3304.0,0.6054]
[1737897980019,1.0072,3304.2,3303.8,1.4868]
[1737897980428,0.00453597,3304.7,3304.1,3.2078]
[1737897980722,0.00453597,3304.7,3304.6,0.6053]
[1737897982821,0.60981597,3304.7,3304.6,0.6053]
[1737897983315,0.00453597,3304.7,3304.3,0.9743]
[1737897983522,0.00453597,3304.7,3304.3,0.4964]
[1737897983719,0.60534,3304.4,3304.3,0.4964]
[1737897983913,0.9665,3304.6,3304.3,0.4964]
[1737897984221,1.11973,3304.5,3304.4,0.60533]
[1737897984714,0.5144,3304.5,3304.3,0.4964]
[1737897984913,0.9665,3304.6,3304.5,0.60532]
[1737897984914,1.57181,3304.6,3304.5,0.60532]
[1737897985114,0.9665,3304.6,3304.3,0.4964]
[1737897985321,1.57181,3304.6,3304.5,0.60532]
[1737897985917,0.00453597,3304.7,3304.3,0.4964]
[1737897986125,0.00453597,3304.7,3304.6,0.6053]
[1737897988723,0.60981597,3304.7,3304.6,0.6053]
[1737897989521,0.00453597,3304.7,3304.4,0.5164]
[1737897989723,0.60533,3304.5,3304.4,0.60532]
[1737897990024,0.60534,3304.4,3304.3,1.10174]
[1737897990319,0.5186,3304.4,3304.3,1.10174]
[1737897993527,0.00453597,3304.7,3304.6,0.6053]
[1737897994325,0.00453597,3304.7,3304.6,41.9243]
[1737897999626,0.00453597,3304.7,3304.6,1.1243]
[1737898013039,0.48273597,3304.7,3304.6,1.1243]
[1737898015342,0.48273597,3304.7,3304.6,4.3321]
[1737898017842,0.48273597,3304.7,3304.6,3.8131]
[1737898020140,0.48273597,3304.7,3304.6,0.6053]
[1737898021643,0.48273597,3304.7,3304.5,3.2078]
[1737898021644,0.6053,3304.6,3304.5,3.81312]
[1737898024450,0.6053,3304.6,3304.5,3.2078]
[1737898024647,0.6053,3304.6,3304.5,3.81312]
[1737898024949,0.6053,3304.6,3304.5,3.2078]
[1737898025149,0.6053,3304.6,3304.5,3.81312]
[1737898027755,0.6053,3304.6,3304.5,0.60532]
[1737898035150,0.48273597,3304.7,3304.3,3.2078]
[1737898035356,0.60534,3304.4,3304.3,3.81314]
[1737898036356,0.60534,3304.4,3304.3,3.2078]
[1737898036563,0.60541,3304.0,3303.9,3.81323]
[1737898036860,0.60541,3304.1,3304.0,0.6054]
[1737898037154,0.36380327,3304.1,3303.9,3.2078]
[1737898037357,0.36380327,3304.2,3304.1,0.60539]
[1737898039858,1.62636,3304.3,3304.0,4.2369]
[1737898040063,1.62636,3304.3,3304.2,0.60537]
[1737898040358,1.97957076,3304.3,3304.2,0.60537]
[1737898041261,0.60539,3304.2,3304.1,0.60538]
[1737898041459,0.95858969,3304.2,3304.1,0.60538]
[1737898042964,0.60539,3304.2,3304.1,0.60538]
[1737898047759,1.62636,3304.3,3304.2,0.60537]
[1737898049260,0.00453597,3304.7,3304.5,0.6053]
[1737898049457,0.60982597,3304.7,3304.6,1.0946]
[1737898049656,0.00453597,3304.7,3304.6,1.0946]
[1737898049858,0.60981597,3304.7,3304.6,1.0946]
[1737898050058,0.00453597,3304.7,3304.6,1.0946]
[1737898050258,0.60981597,3304.7,3304.6,1.0946]
[1737898050961,0.96284002,3304.7,3304.6,1.0946]
[1737898051762,0.35756002,3304.7,3304.6,1.0946]
[1737898052356,0.96284002,3304.7,3304.6,1.0946]
[1737898055063,0.96284002,3304.7,3304.6,0.4893]
[1737898055462,0.60531,3304.6,3304.5,0.60531]
[1737898055659,0.95833405,3304.6,3304.5,0.60531]
[1737898055865,0.35302405,3304.6,3304.3,0.4854]
[1737898056068,0.60534,3304.4,3304.3,0.4854]
[1737898056259,0.95836405,3304.4,3304.3,0.4854]
[1737898056465,1.46606405,3304.4,3304.3,1.09076]
[1737898056965,1.46606405,3304.4,3304.3,0.4854]
[1737898057270,1.11304,3304.4,3304.3,0.4854]
[1737898057668,0.5077,3304.4,3304.2,0.60536]
[1737898057965,0.60536,3304.3,3304.2,0.60536]
[1737898061073,1.11305,3304.4,3304.3,0.60536]
[1737898062272,0.5077,3304.4,3304.1,0.4881]
[1737898062469,1.11305,3304.4,3304.3,0.60536]
[1737898068370,0.60537,3304.3,3304.2,0.60536]
[1737898069562,0.5077,3304.4,3304.0,3.2078]
[1737898069865,1.11305,3304.4,3304.3,0.60536]
[1737898077674,0.5077,3304.4,3304.2,3.2078]
[1737898077980,0.60539,3304.2,3304.1,0.60538]
[1737898078673,0.60541,3304.1,3304.0,0.60539]
[1737898078874,1.08511,3304.1,3304.0,0.60539]
[1737898079975,0.60543,3303.9,3303.8,3.2078]
[1737898080280,0.4797,3304.1,3303.6,0.60548]
[1737898080281,0.60547,3303.7,3303.6,0.60548]
[1737898080774,0.4793,3304.0,3303.4,4.2121]
[1737898080775,0.60546,3303.8,3303.7,0.60546]
[1737898083485,0.60546,3303.8,3303.7,0.60547]
[1737898087389,0.4803,3303.9,3303.4,4.2121]
[1737898087689,1.09248,3303.7,3303.6,0.60548]
[1737898087884,0.6055,3303.5,3303.4,4.81761]
[1737898088187,0.487,3303.7,3303.4,4.81761]
[1737898088391,0.60548,3303.6,3303.4,4.81761]
[1737898088583,0.487,3303.7,3303.4,4.2121]
[1737898088789,0.6055,3303.5,3303.4,4.81761]
[1737898089285,0.6055,3303.5,3303.4,1.60981]
[1737898090279,0.6055,3303.5,3303.4,1.0043]
[1737898090576,0.60552,3303.4,3303.3,0.60553]
[1737898090981,0.60554,3303.3,3303.2,0.61008597]
[1737898091183,1.59004,3303.3,3303.2,0.61008597]
[1737898095197,1.59004,3303.3,3303.2,0.00453597]
[1737898095691,0.60554,3303.3,3303.2,0.00453597]
[1737898095894,0.60554,3303.3,3303.2,1.09249597]
[1737898096292,0.60554,3303.3,3303.2,41.89249597]
[1737898096797,0.60553,3303.4,3303.3,0.60553]
[1737898097192,0.9954,3303.7,3303.2,0.48693597]
[1737898097388,0.9954,3303.7,3303.6,0.60548]
[1737898098392,0.9954,3303.7,3303.6,1.11138]
[1737898098600,0.4793,3304.0,3303.6,0.5059]
[1737898098798,0.60545,3303.8,3303.7,0.60547]
[1737898098998,0.4793,3304.0,3303.6,0.5059]
[1737898099194,1.59501,3304.1,3304.0,0.60541]
[1737898099699,3.6906,3304.6,3304.2,0.60537]
[1737898099700,0.60537,3304.3,3304.2,0.60537]
[1737898099893,0.60538,3304.2,3304.1,0.60538]
[1737898100397,0.60536,3304.3,3304.2,0.60536]
[1737898100598,0.60538,3304.2,3304.1,0.60539]
[1737898102702,0.9724,3304.5,3303.8,3.2078]
[1737898102903,0.60541,3304.0,3303.9,0.60543]
[1737898104801,0.6054,3304.1,3304.0,0.6054]
[1737898105704,0.60537,3304.3,3304.2,0.60537]
[1737898109307,0.60542,3304.0,3303.9,0.60541]
[1737898110105,0.60543,3303.9,3303.8,3.2078]
[1737898113306,0.60543,3303.9,3303.8,3.81325]
[1737898119514,0.9944,3304.1,3304.0,0.60541]
[1737898119515,1.5998,3304.1,3304.0,0.60541]
[1737898119812,1.1181,3304.1,3304.0,0.60541]
[1737898120015,1.11809,3304.1,3304.0,0.60541]
[1737898120402,0.5127,3304.1,3304.0,0.60541]
[1737898120608,1.10376,3304.3,3304.2,0.60537]
[1737898121109,3.2078,3304.6,3303.8,3.2078]
[1737898121317,0.60536,3304.4,3304.3,0.60534]
[1737898121517,3.2078,3304.6,3303.8,3.2078]
[1737898121714,0.9652,3304.3,3303.8,3.2078]
[1737898122015,0.60543,3303.9,3303.8,3.81323]
[1737898124316,0.5074,3304.2,3303.8,3.81323]
[1737898124525,0.6054,3304.1,3304.0,0.6054]
[1737898126425,0.9652,3304.3,3303.8,3.2078]
[1737898126426,0.9652,3304.3,3303.8,5.20112]
[1737898126620,0.60533,3304.5,3303.8,5.20112]
[1737898126924,1.60063,3304.5,3304.4,0.60532]
[1737898130625,1.60062,3304.5,3304.4,0.60532]
[1737898131125,0.9953,3304.5,3304.4,0.60532]
[1737898131326,0.60532,3304.5,3304.4,0.60532]
[1737898132325,1.11992,3304.5,3304.4,0.60532]
[1737898152131,3.2078,3304.6,3304.5,23.88008]
[1737898152531,3.8131,3304.6,3304.5,23.88008]
[1737898155440,4.2951,3304.6,3304.5,23.88008]
[1737898155833,4.2951,3304.6,3304.5,24.4854]
[1737898157538,1.0873,3304.6,3304.5,24.4854]
[1737898159142,1.0873,3304.6,3304.5,23.88008]
[1737898162542,3.2078,3304.8,3304.7,22.78824403]
[1737898162741,3.81307,3304.8,3304.7,22.78824403]
[1737898164342,3.81307,3304.8,3304.7,23.28334403]
[1737898172864,0.60527,3304.8,3304.7,23.28334403]
[1737898173157,3.81307,3304.8,3304.7,22.78824403]
[1737898175862,8.81307,3304.8,3304.7,22.78824403]
[1737898176063,8.81307,3304.8,3304.7,21.08463514]
[1737898176260,8.81307,3304.8,3304.7,18.99785374]
[1737898178170,9.05421986,3304.8,3304.7,18.99785374]
[1737898180367,5.84641986,3304.8,3304.7,18.99785374]
[1737898180569,9.05421986,3304.8,3304.7,18.99785374]
[1737898183269,5.84641986,3304.8,3304.7,18.99785374]
[1737898183671,9.05421986,3304.8,3304.7,18.99785374]
[1737898185070,3.81307,3304.8,3304.7,18.99785374]
[1737898186770,8.81307,3304.8,3304.7,18.99785374]
[1737898188568,3.81307,3304.8,3304.7,18.99785374]
[1737898193571,3.81307,3304.8,3304.7,17.29420867]
[1737898197876,8.81307,3304.8,3304.7,16.68506867]
[1737898198078,8.81307,3304.8,3304.7,6.63217026]
[1737898199274,3.81307,3304.8,3304.7,6.63217026]
[1737898202980,8.81307,3304.8,3304.7,6.63217026]
[1737898203683,8.81307,3304.8,3304.7,4.92838857]
[1737898204284,8.81307,3304.8,3304.7,2.35221719]
[1737898204488,8.81307,3304.8,3304.7,1.46925719]
[1737898204785,8.81307,3304.8,3304.7,0.30533719]
[1737898204977,8.81307,3304.8,3304.7,1e-08]
[1737898206485,0.60539,3304.1,3304.0,1.0431]
[1737898206685,3.81319,3304.1,3304.0,1.0431]
[1737898211984,4.16237961,3304.1,3304.0,1.0431]
[1737898213891,4.16237961,3304.1,3304.0,0.61395602]
[1737898214088,3.81319,3304.1,3304.0,0.61395602]
[1737898218794,3.81319,3304.1,3304.0,25.61395602]
[1737898227100,3.81319,3304.1,3304.0,25.0]
[1737898228393,3.81319,3304.1,3304.0,25.978]
[1737898238396,3.81319,3304.1,3304.0,25.0]
[1737898246504,3.81319,3304.1,3304.0,23.29606746]
[1737898250117,0.60539,3304.1,3304.0,23.29606746]
[1737898250511,0.96231155,3304.1,3304.0,23.29606746]
[1737898250713,4.17011155,3304.1,3304.0,23.29606746]
[1737898251213,4.17011155,3304.1,3304.0,23.78406746]
[1737898251415,4.17011155,3304.1,3304.0,24.28396746]
[1737898253514,4.17011155,3304.1,3304.0,23.29606746]
[1737898260812,4.17011155,3304.1,3304.0,24.31666746]
[1737898262019,4.17011155,3304.1,3304.0,23.82096746]
[1737898262215,4.17011155,3304.1,3304.0,23.29606746]
[1737898273324,4.17011155,3304.1,3304.0,21.59219745]
[1737898273825,3.81319,3304.1,3304.0,21.59219745]
[1737898283926,3.2078,3304.1,3304.0,21.59219745]
[1737898284125,3.2078,3304.1,3304.0,22.19760745]
[1737898284327,3.2078,3304.1,3304.0,21.59219745]
[1737898284916,3.81319,3304.1,3304.0,21.59219745]
[1737898287231,3.2078,3304.3,3304.2,17.77900745]
[1737898287433,3.2078,3304.3,3304.2,16.07516235]
[1737898287826,3.81316,3304.3,3304.2,16.07516235]
[1737898298643,3.81316,3304.3,3304.2,13.99265643]
[1737898299045,3.81316,3304.3,3304.2,12.28879452]
[1737898299249,1.0464,3304.4,3304.3,8.47563452]
[1737898299446,1.65174,3304.4,3304.3,8.47563452]
[1737898303351,0.60534,3304.4,3304.3,8.47563452]
[1737898303545,0.60528,3304.7,3304.3,8.47563452]
[1737898303857,0.60532,3304.5,3304.4,1.0407]
[1737898304050,0.60532,3304.5,3304.4,1.5175]
[1737898306358,1.51312,3305.0,3304.4,2.12282]
[1737898306359,0.60524,3305.0,3304.4,2.12282]
[1737898306549,0.60525,3304.9,3304.4,1.5175]
[1737898307153,0.60525,3304.9,3304.4,2.12283]
[1737898307352,0.60524,3305.0,3304.4,2.12283]
[1737898307549,0.60523,3305.0,3304.4,2.12283]
[1737898307756,0.60525,3304.9,3304.4,2.12283]
[1737898307956,0.60525,3304.9,3304.7,3.2078]
[1737898309663,0.60525,3304.9,3304.8,0.5076]
[1737898311261,0.00453597,3305.1,3304.8,0.5076]
[1737898311462,0.00453597,3305.1,3304.9,1.0193]
[1737898317866,0.60975597,3305.1,3304.9,1.0193]
[1737898319462,0.00453597,3305.1,3304.9,1.0193]
[1737898319659,0.60975597,3305.1,3304.9,1.0193]
[1737898319861,0.00453597,3305.1,3304.9,1.0193]
[1737898320166,0.60974597,3305.1,3304.9,1.0193]
[1737898320862,0.00453597,3305.1,3304.9,1.0193]
[1737898321263,0.60523,3305.0,3304.8,0.5076]
[1737898321464,0.60525,3304.9,3304.8,0.5076]
[1737898323973,1.0267,3305.0,3304.7,3.2078]
[1737898324169,0.60527,3304.8,3304.7,3.2078]
[1737898325667,0.6053,3304.6,3304.5,0.4986]
[1737898326774,0.60534,3304.4,3304.3,11.68343452]
[1737898327368,1.10564,3304.4,3304.3,11.68343452]
[1737898328468,0.60534,3304.4,3304.3,11.68343452]
[1737898330680,0.60534,3304.4,3304.3,8.47563452]
[1737898342783,0.5246,3304.5,3304.3,8.47563452]
[1737898342987,1.12992,3304.5,3304.4,0.5254]
[1737898349181,3.7324,3304.5,3304.3,8.47563452]
[1737898349382,0.60534,3304.4,3304.3,8.47563452]
[1737898354793,1.3326276,3304.6,3304.5,4.13789452]
[1737898354987,1.3326276,3304.6,3304.5,2.65517769]
[1737898357991,1.8599276,3304.6,3304.5,2.65517769]
[1737898359397,1.8599276,3304.6,3304.5,1.76091227]
[1737898364901,1.8599276,3304.6,3304.5,1.11589556]
[1737898365703,2.3543276,3304.6,3304.5,1.11589556]
[1737898368202,2.3543276,3304.6,3304.5,0.73450991]
[1737898374993,2.3543276,3304.6,3304.5,0.46479624]
[1737898376305,2.3543276,3304.6,3304.5,0.31065761]
[1737898379008,2.3543276,3304.6,3304.5,25.31065761]
[1737898383311,1.8696276,3304.6,3304.5,25.31065761]
[1737898383508,1.3423276,3304.6,3304.5,25.31065761]
[1737898384622,1.3423276,3304.6,3304.5,23.22818051]
[1737898385115,1.3423276,3304.6,3304.5,21.52433349]
[1737898388115,0.6053,3304.6,3304.5,21.52433349]
[1737898388420,1.5513,3304.6,3304.5,21.52433349]
[1737898392820,1.5513,3304.6,3304.5,19.44184117]
[1737898394921,1.5513,3304.6,3304.5,17.7379896]
[1737898401329,1.5513,3304.6,3304.5,15.65546371]
[1737898405030,1.5513,3304.6,3304.5,13.95158004]
[1737898406429,0.6053,3304.6,3304.5,13.95158004]
[1737898406630,1.5513,3304.6,3304.5,13.95158004]
[1737898412737,0.6053,3304.6,3304.5,13.95158004]
[1737898415040,0.6053,3304.6,3304.5,12.24777805]
[1737898428353,0.6053,3304.6,3304.5,10.54400657]
[1737898432449,3.2078,3304.8,3304.5,10.54400657]
[1737898432649,0.60529,3304.7,3304.6,1.0161]
[1737898432852,0.60529,3304.7,3304.6,1.5172]
[1737898433055,0.60529,3304.7,3304.6,0.95090051]
[1737898435854,0.60529,3304.7,3304.6,0.5011]
[1737898437452,0.6053,3304.6,3304.5,10.54400657]
[1737898437655,2.1442,3304.6,3304.5,10.54400657]
[1737898438249,1.6446,3304.6,3304.5,10.54400657]
[1737898440858,1.1258,3304.6,3304.5,10.54400657]
[1737898442256,0.6053,3304.6,3304.5,10.54400657]
[1737898442463,1.5513,3304.7,3304.5,10.54400657]
[1737898443577,0.6053,3304.6,3304.5,10.54400657]
[1737898443876,1.55129,3304.7,3304.5,10.54400657]
[1737898444077,0.6053,3304.6,3304.5,10.54400657]
[1737898444374,1.55129,3304.7,3304.5,10.54400657]
[1737898444577,3.2078,3304.8,3304.5,10.54400657]